Cogmind - Beta 16.1 @@@ ROGUE MODE // 2026.02.13 @ 05:45:35 Player: Not_Jesus8 Result: Destroyed by Y-45 Defender with Heavy Assault Rifle Performance ------------- Evolutions (1) 500 Regions Visited (2) 400 Robots Destroyed (8) 40 Value Destroyed (92) 92 Prototype IDs (0) 0 Alien Tech Used (0) 0 Bonus (0) 0 TOTAL SCORE: 1032 Bonus ------- None Cogmind --------- Core Integrity 0/400 Matter 283/300 Energy 100/100 System Corruption 0% Temperature Cool (9) Movement Core (50) Location -9/Materials Parts ------- > --- POWER (1) -------- (None) > --- PROPULSION (2) --- (None) > --- UTILITY (4) ------ (None) > --- WEAPON (2) ------- (None) > --- INVENTORY (5) ---- Medium Storage Unit Improved Terrain Scanner Hacking Suite Peak State ------------ > --- POWER ------------ Ion Engine > --- PROPULSION ------- Compact Wheel Compact Wheel > --- UTILITY ---------- Small Storage Unit Improved Terrain Scanner > --- WEAPON ----------- Medium Laser Medium Laser > --- INVENTORY -------- (None) [Rating: 9] Favorites ----------- Power Ion Engine Engine Ion Engine Propulsion Compact Wheel Wheel Compact Wheel Utility Small Storage Unit Device Seismic Detector Storage Small Storage Unit Weapon Medium Laser Energy Gun Medium Laser Launcher Mini Grenade Launcher Build | -11 -10 -9 ------- Run | Yrd Mat Mat Slots Evolved 2 | . . 2 Power . | . . . Propulsion . | . . . Utility 2 | . . 2 Weapon . | . . . Parts Attached 9 | 8 . 1 Power 1 | 1 . . Engine 1 | 1 . . Core . | . . . Reactor . | . . . Propulsion 2 | 2 . . Treads . | . . . Leg . | . . . Wheel 2 | 2 . . Hover . | . . . Flight . | . . . Utility 3 | 3 . . Device 2 | 2 . . Storage 1 | 1 . . Processor . | . . . Hackware . | . . . Protection . | . . . Artifact . | . . . Weapon 3 | 2 . 1 Energy Gun 2 | 2 . . Energy Cannon . | . . . Ballistic Gun . | . . . Ballistic Cannon . | . . . Launcher 1 | . . 1 Special Weapon . | . . . Impact Weapon . | . . . Slashing Weapon . | . . . Piercing Weapon . | . . . Special Melee Weapon . | . . . Unidentified Prototypes . | . . . Parts Lost 6 | . 2 4 Power 1 | . . 1 Propulsion 1 | . 1 . Utility 1 | . 1 . Weapon 3 | . . 3 Highest Loss Streak 2 | . 2 2 To Critical Strikes . | . . . Average Backups 1 | . 1 2 Power . | . . . Propulsion . | . . . Utility 1 | . 1 2 Weapon . | . . . Tool/Special . | . . . Unused Backups 2 | . . 2 Power . | . . . Propulsion . | . . . Utility 2 | . . 2 Weapon . | . . . Tool/Special . | . . . Average Slot Usage (%) 75 | . 100 34 Engine 10 | . 14 4 Wheel 20 | . 28 8 Device 8 | . 14 . Storage 11 | . 14 8 Energy Gun 22 | . 28 12 Peak Build Rating 9 | 9 7 5 Average Rating 5 | 6 6 3 On Entrance 4 | . 7 5 Avg Prop Armor Cover (%) . | . . . Naked Turns 89 | . . 89 Heaviest Build 15 | 15 15 14 Greatest Support 32 | 32 32 16 Greatest Overweight (x) 1 | 1 . . Average Overweight (x) . | . . . Largest Inventory Capacity 8 | 8 8 8 Average Capacity 7 | 7 8 7 Most Carried 4 | 1 2 4 Average Carried 1 | . 1 2 Final Capacity 8 | 8 8 5 Final Carried 3 | 1 2 3 Class Distribution -------------------- 100% | Mutant Dominant Class ---------------- Mutant | -10/Materials Mutant | -9/Materials Resources | -11 -10 -9 ----------- Run | Yrd Mat Mat Matter Collected 280 | 280 . . Remotely . | . . . Salvage Created 159 | 80 38 41 Parts 17 | 6 7 4 Haulers Intercepted 1 | . . 1 Recyclers Shooed . | . . . Parts Field Recycled . | . . . Retrieved Matter . | . . . Parts Self-Destructed . | . . . Prevented . | . . . Parts Restored . | . . . Kills | -11 -10 -9 ------- Run | Yrd Mat Mat Combat Hostiles Destroyed 1 | . 1 . Guns 1 | . 1 . Classes Destroyed 5 | 1 3 1 Tunneler 4 | 4 . . Hauler 1 | . . 1 Operator 1 | . 1 . Watcher 1 | . 1 . Swarmer 1 | . 1 . Best Kill Streak 2 | 2 2 1 Combat Bots Only 1 | . 1 . Max Kills in Single Turn 1 | 1 1 1 Gunslinging . | . . . Exploded . | . . . Melee . | . . . Uniques/NPCs Destroyed . | . . . Combat | -11 -10 -9 -------- Run | Yrd Mat Mat Hostile Shots Fired 95 | . 34 61 Missed 35 | . 12 23 Hits 60 | . 22 38 Projectile 60 | . 22 38 Damage Taken 893 | . 240 653 Core 508 | . 100 408 Absorbed by Shields . | . . . Core Remaining (%) 80 | 100 60 . Volleys Fired 24 | 13 7 4 Largest 2 | 2 2 2 Hottest 100 | 100 100 100 Shots Fired 45 | 26 14 5 Gun 43 | 26 14 3 Cannon . | . . . Launcher 2 | . . 2 Special . | . . . Kinetic . | . . . Thermal 43 | 26 14 3 Explosive 2 | . . 2 Electromagnetic . | . . . Robot Hit Streak 8 | 8 5 2 Robot Miss Streak 2 | 2 2 1 Penetration Max . | . . . Secondary Targets . | . . . Shots Hit Robots 30 | 19 9 2 Core Hits 11 | 4 6 1 Critical Kills . | . . . Critical Parts Destroyed . | . . . Critical Strikes 4 | 3 1 . Burn 4 | 3 1 . Melee Attacks . | . . . Impact . | . . . Slashing . | . . . Piercing . | . . . Sneak Attacks . | . . . Combat Hostiles . | . . . Follow-up Attacks . | . . . Damage Inflicted 401 | 239 112 50 Guns 377 | 239 112 26 Cannons . | . . . Explosions 18 | . . 18 Melee . | . . . Ramming 6 | . . 6 Kinetic . | . . . Thermal 395 | 239 112 44 Explosive . | . . . Electromagnetic . | . . . Impact . | . . . Slashing . | . . . Piercing . | . . . Highest Corruption 3 | . 3 . Average Corruption 2 | . 2 . Corruption Purged . | . . . Corruption Blocked . | . . . Overload Shots . | . . . Overflow Damage . | . . . Projectiles . | . . . Explosions . | . . . Melee . | . . . Knockbacks . | . . . Impact . | . . . Kinetic . | . . . Secondary . | . . . Self-Inflicted Damage 150 | . . 150 Shots 3 | . . 3 Rammed 2 | . . 2 Targets Rammed 2 | . . 2 Kicked . | . . . Crushed . | . . . Highest Temperature 176 | 176 39 39 Average Temperature 63 | 85 24 24 Received Heat Transfer 315 | . 129 186 Siege Activations . | . . . Martial Activations . | . . . Shielding Activations . | . . . Robots Disrupted . | . . . Combat Hostiles . | . . . Robots Corrupted . | . . . Combat Hostiles . | . . . Parts Fried . | . . . Impact Corruptions . | . . . Robots Melted . | . . . Combat Hostiles . | . . . Parts Melted 4 | 2 2 . Heat Transferred 1456 | 925 407 124 Parts Sabotaged . | . . . Parts Stolen . | . . . Parts Stripped . | . . . Power Chain Reactions . | . . . Alert | -11 -10 -9 ------- Run | Yrd Mat Mat Maximum Alert Level . | . . . Low Security (%) 100 | 100 100 100 Level 1 . | . . . Level 2 . | . . . Level 3 . | . . . Level 4 . | . . . Level 5 . | . . . High Security . | . . . Max Security . | . . . Peak Influence 168 | 10 40 168 Initial . | . . . Average 14 | 1 5 37 Influence Increases 574 | 20 121 433 Destroy 0b10 Robot/C 20 | . 20 . Destroy 0b10 Robot/NC 35 | 20 10 5 Destroy Leader 4 | . 2 2 Successful Hack 44 | . 29 15 Select Force Hacks 60 | . 60 . Disable Machine 30 | . . 30 Destroy Structure 36 | . . 36 Lose Combat Pursuer 345 | . . 345 Influence Decreases 411 | 20 119 272 Entered New Map 2 | . . 2 Time Decay 211 | 20 99 92 Lost Part 40 | . 20 20 Purge Threat 158 | . . 158 Squads Dispatched 10 | . 6 4 Investigation 5 | . 3 2 Extermination . | . . . Reinforcement 5 | . 3 2 Assault . | . . . Garrison . | . . . Intercept . | . . . Searches Triggered . | . . . Construction Impeded . | . . . Haulers Reinforced . | . . . Active Scanning Responses . | . . . Cargo Convoy Interrupts . | . . . Stealth | -11 -10 -9 --------- Run | Yrd Mat Mat Distress Signals 7 | . 2 5 Communications Jammed . | . . . Distress Signals . | . . . Times Spotted 61 | . 21 40 Peak Tracking Total 18 | . 8 18 Tactical Retreats 8 | . . 8 Traps | -11 -10 -9 ------- Run | Yrd Mat Mat Traps Triggered 5 | . 2 3 Indirectly . | . . . Trap Hack Attempts . | . . . Triggered . | . . . Disarmed . | . . . Reprogrammed . | . . . Reused . | . . . Traps Extracted . | . . . Installed . | . . . Triggered . | . . . Machines | -11 -10 -9 ---------- Run | Yrd Mat Mat Machines Disabled 2 | . . 2 Max in Single Turn 2 | . . 2 Machines Repaired . | . . . Machines Dismantled . | . . . Machines Sabotaged . | . . . Overloaded Fab Kills . | . . . Hacking | -11 -10 -9 --------- Run | Yrd Mat Mat Machines Accessed 14 | . 5 9 Terminals 12 | . 3 9 Fabricators . | . . . Repair Stations . | . . . Recycling Units 2 | . 2 . Scanalyzers . | . . . Garrison Access . | . . . Total Hacks 39 | . 12 27 Successful 25 | . 8 17 Failed 14 | . 4 10 Catastrophic 4 | . 2 2 Database Lockouts . | . . . Manual 39 | . 12 27 Terminals 36 | . 9 27 Fabricators . | . . . Repair Stations . | . . . Recycling Units 3 | . 3 . Scanalyzers . | . . . Garrison Access . | . . . Terminal Hacks 3 | . . 3 Terminal Index 1 | . . 1 Unreport Threat 2 | . . 2 Fabricator Hacks . | . . . Repair Station Hacks . | . . . Recycling Unit Hacks . | . . . Scanalyzer . | . . . Garrison Access Hacks . | . . . Unauthorized Hacks 22 | . 8 14 Terminals 19 | . 5 14 Track 1 | . . 1 Assimilate 1 | . . 1 Botnet 10 | . 3 7 Skim 7 | . 2 5 Fabricators . | . . . Repair Stations . | . . . Recycling Units 3 | . 3 . Recyclers 1 | . 1 . Tunnel 2 | . 2 . Scanalyzers . | . . . Garrison Access . | . . . Data Cores Recovered 1 | . 1 . Used . | . . . Hacking Detections 13 | . 4 9 Full Trace Events 1 | . . 1 Feedback Events . | . . . Feedback Blocked . | . . . Robot Schematics Acquired . | . . . Robots Built . | . . . Authchips . | . . . Time . | . . . Total Robot Build Rating . | . . . Part Schematics Acquired . | . . . Parts Built . | . . . Authchips . | . . . Time . | . . . Total Part Build Rating . | . . . Part Studies Acquired . | . . . Parts Repaired . | . . . Time . | . . . Parts Recycled . | . . . Recycled Matter . | . . . Retrieved Matter . | . . . Retrieved Components . | . . . Parts Scanalyzed . | . . . Part Schematics Acquired . | . . . Parts Damaged . | . . . Bothacking | -11 -10 -9 ------------ Run | Yrd Mat Mat Used RIF Installer . | . . . Robots Hacked . | . . . Non-combat . | . . . Combat . | . . . Robot Hacks Applied . | . . . Relay Couplers Released . | . . . Fabnet Peak Effective % . | . . . Robots Rewired . | . . . Allies Hacked . | . . . Hacks Repelled . | . . . Allies | -11 -10 -9 -------- Run | Yrd Mat Mat Total Allies 1 | . . 1 Largest Group 1 | . . 1 Highest-Rated Group 10 | . . 10 Highest-Rated Ally 10 | . . 10 Total Orders . | . . . Ally Attacks . | . . . Total Damage . | . . . Kills . | . . . Allies Corrupted 1 | . . 1 Allies Melted . | . . . Intel | -11 -10 -9 ------- Run | Yrd Mat Mat Active Infowar (turns) 662 | 88 574 . Terrain 56 | 56 . . Seismic 606 | 32 574 . Robot Analysis Total . | . . . Derelict Logs Recovered . | . . . Drone Launches . | . . . Drone Recoveries . | . . . Exploration | -11 -10 -9 ------------- Run | Yrd Mat Mat Turns Passed 1117 | 186 580 351 Spaces Moved 1003 | 136 449 418 Core 179 | 6 . 173 Treads . | . . . Legs . | . . . Wheels 824 | 130 449 245 Hover . | . . . Flight . | . . . Fastest Speed 50 | 50 100 50 Average Speed 91 | 98 100 79 Slowest Speed 100 | 100 100 100 Overloaded Moves . | . . . Propulsion Burnouts . | . . . Robots Hopped . | . . . Potential Cave-ins . | . . . Cave-ins Triggered . | . . . Exploration Rate (%) 41 | 5 72 48 Regions Visited 2 Branch Regions . Pre-discovered Areas 3 | . 2 1 Known Exits Taken . | . . . Unknown Exits Taken 2 | 1 1 . Scrap Searched . | . . . Spaces Dug . | . . . Terrain Destroyed 39 | . . 39 Melee . | . . . Projectile . | . . . AOE 39 | . . 39 Terrain Rammed . | . . . Walls Destroyed . | . . . Machines Disabled . | . . . Actions | -11 -10 -9 --------- Run | Yrd Mat Mat Total 1156 | 157 566 433 Wait 116 | . 110 6 Move 1001 | 135 448 418 Hop . | . . . Pick Up 3 | . 1 2 Fast Attach 8 | 8 . . Attach 1 | . . 1 Detach 1 | 1 . . Swap . | . . . Drop . | . . . Fire 24 | 13 7 4 Melee . | . . . Ram 2 | . . 2 Kick . | . . . Crush . | . . . Escape Stasis . | . . . Rewire . | . . . Trap . | . . . Miscellaneous . | . . . Route ------- -11/Scrapyard -10/Materials (discovered 2 exits: *Mat / [*Min]) -9/Materials History --------- Turn | Location | Event 19 | -11/Scrapyard | Discovered new exit (range 14) 187 | -11/Scrapyard | Entered Materials 188 | -10/Materials | Met a group of wandering Federalists 302 | -10/Materials | Build established: Mutant 366 | -10/Materials | Lost 3 allies 543 | -10/Materials | Discovered new exit (range 13) 753 | -10/Materials | Discovered new exit (range 14) 767 | -10/Materials | Entered another Materials area 767 | -9/Materials | Evolved 2 slots: Utility x2 1023 | -9/Materials | Released all parts (2) 1041 | -9/Materials | Learned location of Recycling (-8) 1051 | -9/Materials | Core integrity fell below 50% 1098 | -9/Materials | Core integrity fell below 20% 1103 | -9/Materials | Learned Storage security intel 1118 | -9/Materials | Destroyed by Y-45 Defender with Heavy Assault Rifle Last Messages --------------- 01072_ Triggered EMP Trap. 01072_ A bubble of electromagnetic force engulfs the area. 01072_ Door malfunctions. 01072_ U-05 Engineer destroyed. 01077_ Acquired Mni. Grenade Launcher. 01081_ O-16 Technician: "IFF HANDSHAKE FAILED. SECURING TERMINAL." 01083_ R-06 Scavenger collects Corrupted Terrain Scan Processor. 01097_ Fusion Modulator explodes. 01097_ A-02 Transporter destroyed. 01098_ U-05 Engineer builds a Wall. 01099_ Mni. Grenade Launcher destroyed. 01100_ K-01 Serf collects debris. 01103_ >> SKIM: Stored Storage security intel. 01103_ U-05 Engineer builds a Wall. 01104_ ALERT: Hostiles spotted, dispatching reinforcements to Terminal M009. 01117_ Slammed into G-34 Mercenary. Map ----- +----------------------------------------------------+ | ??????????????????????????????????????? | | ??????????????????????????????????????? | | ??????????????????????????????????????? | | ??????????????????????????????????????? | | ??????????????????????????????????????? | | ????????????????????????????????####### | | ????????????????????????????????# | | ????????????????????????????????#!! | | ????????????????????????????????#!! | | ????????????????????????????????# | | ????????????????????????????????# | | ????????????????????????????????# """ | | ######??????????????????????????? """ | | #! #####??????????????????????? """ | | # + #?????###+####?????????? | | # ### #?????# #?????????####### | | # ### ###???# #???????????????? | | # # #???# #???????????????? | | # # " ##### [[ #???????????????? | | # + "T g # [[ #######?????????? | | # # ### #? ; # #######???? | | # # #?# ##+;;; ;; ????? | | ########+##### ; ; ""????? | | ???# # ; ; ""???#? | | ???# #g ; """ #? | | ???# g@Y = k ; #? | | ???# ####[[= ; """ #? | | ???# #??#%[! ; """ #? | | ???# """ """ #??#[[* ; """ ??? | | ???# """ """ #??#=" " #? | | ???# """ """ #??# #### """###+####### | | ???###########??# | | ????????????????# | | ????????????????# ##/################# | | ????????????????# ?# ???????????????? | | ????????????????# ?# ??????????????? | | ???????????????? ?# ??????????????? | | ???????????????+ ??]] ??????????????? | | ???????????????? ??]] ?????????????? | | ???????????????# ??]] ?????????????? | | ???????????????## ??###??????????????? | | ??????????????????????????????????????? | | ??????????????????????????????????????? | | ??????????????????????????????????????? | | ??????????????????????????????????????? | | ??????????????????????????????????????? | | ??????????????????????????????????????? | | ??????????????????????????????????????? | | ??????????????????????????????????????? | | ??????????????????????????????????????? | +----------------------------------------------------+ Best States ------------- Heat Dissipation 28 Energy Generation 10 Energy Capacity 250 Matter Stores 300 Matter Capacity 300 Sight Range 16 Terrain Scan Range 16 Terrain Scan Density 10 Evasion (%) 50 Item Schematics ----------------- None Robot Schematics ------------------ None Fabricated ------------ Nothing Repaired ---------- Nothing Studied --------- None Alien Tech Used ----------------- None Achievements -------------- None Challenges ------------ None Game ------ Seed DeliveryWarpJetlance Manual? 0 Play Time 00:11:44 Cumulative 36.3 hours Start 2026.02.13 @ 05:30:07 End 2026.02.13 @ 05:45:35 Sessions 1 Manual Loads 0 Difficulty Rogue Special Mode None Game No. 82 Rogue 82 Adventurer 0 Explorer 0 Win Type - Total 2 Types 2/0/0/0/0/0/0/0/0/0 Lore% 40 Gallery% 31 Achievement% 31 Wizard Run 0 Options --------- Layout 1 ASCII 0 Keyboard 1 Movement Arrows Keybinds 0 Fullscreen 1 Font 16/SmallcapsGlow Map View 50x54 Zoom Use 15% Tactical HUD 1 Map Filters NONE Filters NONE Steam 1 RUN: ff07ab8f-cf70-4dc5-a27f-971160938c09